fUSD/lending_fUSD_20260326
["ID","MTS","AMOUNT","RATE_DAILY","PERIOD"]
[418921247,1774551045788,-716.49020845,0.000159,2]
[418921248,1774551046035,-993.80145634,0.00014055,2]
[418921249,1774551046170,-334.19854366,0.00014055,2]
[418921250,1774551046180,-2483.881,0.00014055,2]
[418921251,1774551046189,-231.126504,0.00014169,7]
[418921252,1774551046199,-331.52292755,0.000155,2]
[418921253,1774551046208,-2000.0,0.000156,2]
[418921254,1774551046218,-2000.0,0.000157,2]
[418921255,1774551046227,-2000.0,0.000158,2]
[418921256,1774551046237,-31727.49438809,0.000159,2]
[418921257,1774551046246,-635.09378331,0.000159,2]
[418921258,1774551046256,-500.0,0.000159,2]
[418921259,1774551046265,-500.0,0.000159,2]
[418921260,1774551046274,-176.69105744,0.000159,2]
[418921261,1774551046284,-34441.34536468,0.000159,2]
[418921262,1774551046293,-150.0,0.000159,2]
[418921263,1774551046303,-150.15977594,0.000159,2]
[418921264,1774551046312,-150.0,0.000159,2]
[418921265,1774551046321,-174.41010145,0.000159,2]
[418921266,1774551046331,-150.0,0.000159,2]
[418921267,1774551046340,-150.0,0.000159,2]
[418921268,1774551046349,-150.0,0.000159,2]
[418921269,1774551046358,-150.0,0.000159,2]
[418921270,1774551046368,-320.0,0.000159,2]
[418921271,1774551046378,-320.0,0.000159,2]
[418921272,1774551046387,-320.0,0.000159,2]
[418921273,1774551046396,-320.0,0.000159,2]
[418921274,1774551046405,-5825.02574313,0.000159,2]
[418921275,1774551046415,-151.0,0.000159,2]
[418921276,1774551046424,-151.0,0.000159,2]
[418921277,1774551046433,-163.16753952,0.000159,2]
[418921278,1774551046444,-14314.95843596,0.000159,2]
[418921279,1774551046453,-503.176288,0.000159,2]
[418921280,1774551046462,-503.176288,0.000159,2]
[418921281,1774551046472,-503.176288,0.000159,2]
[418921282,1774551046481,-503.176279,0.000159,2]
[418921283,1774551046491,-555.8907502,0.000159,2]
[418921284,1774551046500,-151.0,0.000159,2]
[418921285,1774551046510,-151.0,0.000159,2]
[418921286,1774551046520,-151.0,0.000159,2]
[418921287,1774551046529,-1590.64159398,0.000159,2]
[418921288,1774551046538,-7466.85249152,0.000159,2]
[418921289,1774551046547,-749.0978838,0.000159,2]
[418921290,1774551046557,-183.85081596,0.000159,2]
[418921291,1774551046567,-2000.0,0.000159,2]
[418921292,1774551046576,-500.0,0.00015959,2]
[418921293,1774551046586,-3818.32173057,0.0001596,2]
[418921294,1774551046596,-300.0,0.0001597,2]
[418921295,1774551046608,-300.0,0.0001597,2]
[418921296,1774551046618,-700.0,0.0001597,2]
[418921297,1774551046630,-700.0,0.0001597,2]
[418921298,1774551046639,-700.0,0.0001597,2]
[418921299,1774551046648,-1303.24535537,0.0001597,2]
[418921300,1774551046658,-700.0,0.0001597,2]
[418921301,1774551046667,-500.0,0.00015973,2]
[418921302,1774551046677,-166.32485968,0.00015973,2]
[418921303,1774551046686,-288.22024869,0.0001599,2]
[418921304,1774551046696,-288.22024869,0.0001599,2]
[418921305,1774551046705,-151.0,0.00015996,2]
[418921306,1774551046715,-151.0,0.00015997,2]
[418921307,1774551046724,-223.076206,0.00015997,2]
[418921308,1774551046734,-604.16,0.00015999,2]
[418921309,1774551046743,-604.16,0.00015999,2]
[418921310,1774551046752,-604.16,0.00015999,2]
[418921311,1774551046761,-604.16,0.00015999,2]
[418921312,1774551046771,-604.32,0.00015999,2]
[418921313,1774551046781,-500.0,0.00015999,2]
[418921314,1774551046790,-527.29021656,0.00015999,2]
[418921315,1774551046800,-500.0,0.00015999,2]
[418921316,1774551046809,-500.0,0.00015999,2]
[418921317,1774551046819,-500.0,0.00015999,2]
[418921318,1774551046828,-500.0,0.00015999,2]
[418921319,1774551046837,-316.47434679,0.00015999,2]
[418921320,1774551046847,-500.0,0.00015999,2]
[418921321,1774551046856,-500.0,0.00015999,2]
[418921322,1774551046866,-562.4,0.00015999,2]
[418921323,1774551046875,-627.33,0.00015999,2]
[418921324,1774551046886,-627.33,0.00015999,2]
[418921325,1774551046896,-627.33,0.00015999,2]
[418921326,1774551046905,-627.33,0.00015999,2]
[418921327,1774551046915,-627.33,0.00015999,2]
[418921328,1774551046925,-627.33,0.00015999,2]
[418921329,1774551046934,-627.33,0.00015999,2]
[418921330,1774551046944,-627.39,0.00015999,2]
[418921331,1774551046953,-475.0,0.00015999,2]
[418921332,1774551046963,-76600.88257418,0.00015999,2]
[418921333,1774551046973,-1156.16747656,0.00015999,5]
[418921334,1774551046983,-1156.16747656,0.00015999,5]
[418921335,1774551046992,-500.0,0.00015999,2]
[418921336,1774551047002,-264.41973633,0.00015999,2]
[418921337,1774551047012,-320.0,0.00015999,2]
[418921338,1774551047021,-320.0,0.00015999,2]
[418921339,1774551047031,-320.0,0.00015999,2]
[418921340,1774551047040,-320.0,0.00015999,2]
[418921341,1774551047050,-223324.84007309,0.00016,2]
[418921342,1774551047066,-682.74556,0.00016,2]
[418921343,1774551049097,-151.0,0.00014634,2]
[418921344,1774551049107,-1893.19999998,0.00016,2]
[418921347,1774551493075,150.0,8.5e-05,3]
[418921350,1774551963770,633.425,0.00017,60]
[418921357,1774552232185,-485.23362905,0.00010959,2]
[418921358,1774552232195,-195.0,0.00010959,2]
[418921359,1774552232221,-378.66277154,0.00011507,2]
[418921360,1774552232234,-1502.30722846,0.00011507,2]
[418921361,1774552232244,-195.0,0.00011806,2]
[418921362,1774552232254,-195.0,0.00011806,2]
[418921363,1774552232264,-195.0,0.00011806,2]
[418921364,1774552232276,-195.0,0.00012055,2]
[418921365,1774552232286,-979.16666667,0.00013341,2]
[418921366,1774552232296,-485.23362905,0.00013382,2]
[418921367,1774552232306,-300.0,0.00013435,2]
[418921368,1774552232317,-744.42493468,0.00013435,2]
[418921369,1774552232345,-455.57506532,0.00013435,2]
[418921370,1774552232355,-490.90853498,0.00013436,2]
[418921371,1774552232422,-1088.42714169,0.00013436,2]
[418921372,1774552232434,-318.75595281,0.00013436,2]
[418921373,1774552232446,-323.40857052,0.00013436,2]
[418921374,1774552232457,-485.23362905,0.00013436,2]
[418921375,1774552232467,-155.46,0.00013699,2]
[418921376,1774552232478,-150.0,0.00014,2]
[418921377,1774552232488,-504.0,0.00014,2]
[418921378,1774552232499,-898.91031612,0.00014082,2]
[418921383,1774552237897,-201.08968388,0.00014082,2]
[418921384,1774552237906,-1500.0,0.00014082,2]
[418921385,1774552237917,-781.18,0.0001421,2]
[418921386,1774552237928,-150.0,0.0001423,2]
[418921387,1774552237938,-500.0,0.00014231,2]
[418921388,1774552237948,-17.34233233,0.00014231,2]
[418921389,1774552237959,-482.65766767,0.00014231,2]
[418921390,1774552237969,-500.0,0.00014231,2]
[418921391,1774552237978,-500.0,0.00014231,2]
[418921392,1774552237987,-500.0,0.00014231,2]
[418921393,1774552237997,-500.0,0.00014231,2]
[418921394,1774552238007,-500.0,0.00014231,2]
[418921395,1774552238016,-500.0,0.00014231,2]
[418921396,1774552238026,-500.0,0.00014231,2]
[418921397,1774552238035,-500.0,0.00014231,2]
[418921398,1774552238044,-500.0,0.00014231,2]
[418921399,1774552238054,-500.0,0.00014231,2]
[418921400,1774552238063,-2000.0,0.00014239,2]
[418921401,1774552238072,-240.0,0.0001424,2]
[418921402,1774552238082,-150.0,0.0001424,2]
[418921403,1774552238091,-150.0,0.0001424,2]
[418921404,1774552238100,-150.0,0.0001424,2]
[418921405,1774552238110,-150.0,0.0001424,2]
[418921406,1774552238119,-1345.0,0.0001424,2]
[418921407,1774552238128,-3516.0,0.0001424,2]
[418921408,1774552238138,-1045.0,0.0001424,2]
[418921409,1774552238147,-150.0,0.0001424,2]
[418921410,1774552238156,-1262.0,0.0001424,2]
[418921411,1774552238166,-924.0,0.0001424,2]
[418921412,1774552238175,-1216.0,0.0001424,2]
[418921413,1774552238185,-6011.0,0.0001424,2]
[418921414,1774552238194,-2467.0,0.0001424,2]
[418921415,1774552238203,-284.56,0.00014281,2]
[418921416,1774552238211,-500.0,0.00014334,2]
[418921417,1774552238220,-500.0,0.00014334,2]
[418921419,1774552238230,-500.0,0.00014334,2]
[418921421,1774552238239,-500.0,0.00014334,2]
[418921423,1774552238250,-500.0,0.00014334,2]
[418921425,1774552238259,-500.0,0.00014334,2]
[418921427,1774552238268,-182.10029146,0.00014334,2]
[418921429,1774552238278,-200.0,0.00014452,2]
[418921431,1774552238287,-1115.9857,0.00014504,2]
[418921433,1774552238296,-420.0,0.00014727,2]
[418921435,1774552238305,-1680.0,0.00014778,2]
[418921437,1774552238315,-504.0,0.0001488,2]
[418921439,1774552238324,-409.0,0.000149,2]
[418921441,1774552238334,-150.0,0.00014994,2]
[418921444,1774552238343,-284.56,0.00014996,2]
[418921445,1774552238353,-500.0,0.00015107,2]
[418921447,1774552238362,-200.0,0.00015107,2]
[418921449,1774552238372,-890.511,0.0001514,2]
[418921451,1774552238381,-155.64980703,0.0001514,2]
[418921453,1774552238390,-197.1805,0.000152,2]
[418921456,1774552238400,-255.0,0.00015354,2]
[418921458,1774552238409,-350.0,0.00015428,2]
[418921460,1774552238419,-1100.0,0.00015452,2]
[418921462,1774552238428,-1500.0,0.00015452,2]
[418921464,1774552238438,-168.0,0.00015453,2]
[418921465,1774552238447,-4000.0,0.00015507,2]
[418921467,1774552238457,-168.0,0.00015511,2]
[418921469,1774552238467,-168.0,0.00015512,2]
[418921471,1774552238476,-168.0,0.00015567,2]
[418921474,1774552238487,-183.91,0.000156,2]
[418921476,1774552238496,-168.0,0.00015606,2]
[418921478,1774552238506,-579.3,0.00015645,2]
[418921479,1774552238515,-27798.5705,0.000157,2]
[418921481,1774552238525,-2500.0,0.000157,2]
[418921483,1774552238534,-5000.0,0.000157,2]
[418921485,1774552238543,-3495.01544595,0.00015708,2]
[418921487,1774552238553,-246.75232741,0.00015708,2]
[418921489,1774552238562,-284.56,0.0001571,2]
[418921491,1774552238571,-3495.01544588,0.00015729,2]
[418921493,1774552238580,-246.7523274,0.00015729,2]
[418921495,1774552238590,-150.0,0.00015743,2]
[418921497,1774552238599,-3495.01544588,0.00015751,2]
[418921499,1774552238608,-246.7523274,0.00015751,2]
[418921501,1774552238618,-504.0,0.0001576,3]
[418921503,1774552238627,-3495.01544588,0.00015772,2]
[418921505,1774552238637,-246.7523274,0.00015772,2]
[418921507,1774552238646,-168.0,0.00015784,2]
[418921509,1774552238655,-3495.01544588,0.00015793,2]
[418921511,1774552238665,-246.7523274,0.00015793,2]
[418921513,1774552238674,-500.0,0.00015798,2]
[418921515,1774552238682,-500.0,0.00015798,2]
[418921517,1774552238691,-500.0,0.00015798,2]
[418921519,1774552238700,-500.0,0.00015798,2]
[418921521,1774552238710,-500.0,0.00015798,2]
[418921523,1774552238719,-200.0,0.00015798,2]
[418921525,1774552238728,-500.0,0.00015799,2]
[418921527,1774552238737,-500.0,0.00015799,2]
[418921528,1774552238746,-555.65511572,0.00015799,2]
[418921529,1774552238755,-584.46406853,0.00015799,2]
[418921530,1774552238764,-1059.0,0.000158,5]
[418921531,1774552238773,-849.0,0.000158,5]
[418921533,1774552238782,-12043.92681101,0.000158,2]
[418921587,1774552239267,-1343.82,0.000158,2]
[418921589,1774552239283,-43133.6656442,0.000158,2]
[418921592,1774552239293,-405.99,0.000158,2]
[418921594,1774552239304,-5552.0,0.000158,2]
[418921598,1774552239331,-464.31085152,0.000158,2]
[418921619,1774552240487,-415.0,0.0001424,2]
[418921620,1774552240496,-1140.17783652,0.000158,2]
[418921621,1774552240753,-406308.66932907,0.000158,2]
[418921622,1774552240808,-1085.00881328,0.000158,2]
[418921623,1774552240863,-68449.25018441,0.000158,2]
[418921626,1774552242991,-165.67,0.00015585,2]
[418921627,1774552243000,-162635.15075507,0.000158,2]
[418921628,1774552243050,-6856.52248751,0.000158,2]
[418921630,1774552243063,-540.16205524,0.000158,2]
[418921647,1774552245878,-582.7291639,0.000158,2]
[418921648,1774552245890,-456.96597722,0.000158,2]
[418921649,1774552245903,-696.77283446,0.000158,2]
[418921650,1774552245988,-107680.4811745,0.000158,2]
[418921658,1774553432185,-250.0,0.00013,2]
[418921659,1774553432195,-195.0,0.00013046,2]
[418921660,1774553432204,-200.0,0.00013183,2]
[418921661,1774553432215,-195.0,0.00013217,2]
[418921662,1774553432224,-195.0,0.00013217,2]
[418921663,1774553432234,-195.0,0.00013217,2]
[418921664,1774553432245,-150.0,0.000134,2]
[418921665,1774553432254,-157.02,0.00013699,2]
[418921666,1774553432263,-1500.0,0.00013935,2]
[418921667,1774553432273,-979.16666667,0.00013949,2]
[418921668,1774553432282,-504.0,0.00014,2]
[418921669,1774553432292,-1200.0,0.00014021,2]
[418921670,1774553432301,-3240.0,0.00014022,2]
[418921671,1774553432310,-150.0,0.00014037,2]
[418921672,1774553432320,-17645.01048117,0.00014038,2]
[418921673,1774553432336,-860.2895372,0.00014038,2]
[418921674,1774553432347,-1532.35,0.00014038,2]
[418921675,1774553432358,-672.700005,0.00014038,2]
[418921676,1774553432370,-51150.80496968,0.00014038,2]
[418921677,1774553432462,-5719.49229652,0.00014038,2]
[418921707,1774553438152,-1165.45033526,0.00014038,2]
[418921708,1774553438164,-908.60894707,0.00014038,2]
[418921709,1774553438175,-251.76529873,0.00014038,2]
[418921710,1774553438187,-3521.18509526,0.00014038,2]
[418921711,1774553438317,-434.62389218,0.00014038,2]
[418921712,1774553438329,-1741.48362425,0.00014038,2]
[418921713,1774553438341,-479.436717,0.00014038,2]
[418921714,1774553438375,-1832.4632012,0.00014038,2]
[418921735,1774553440325,-1882.66603983,0.00014038,2]
[418921737,1774553440918,-503.44357086,0.00014038,2]
[418921738,1774553441001,-1737.3,0.00014038,2]
[418921739,1774553441012,-1154.23860153,0.00014038,2]
[418921740,1774553441063,-13801.79304624,0.00014038,2]
[418921741,1774553441075,-2500.0,0.00014038,2]
[418921754,1774553441221,-713.67957342,0.00014038,2]
[418921795,1774553443217,-27906.90464731,0.00014038,2]
[418921796,1774553443274,-17992.25571272,0.00014038,2]
[418921797,1774553443286,-32924.23873459,0.00014038,2]
[418921836,1774553445966,-4010.25927298,0.00014038,2]
[418921837,1774553445976,-409.12484797,0.00014038,2]
[418921838,1774553445985,-388.95858101,0.00014038,2]
[418921839,1774553445995,-1000.0,0.00014039,2]
[418921840,1774553446004,-923.0231,0.00014039,2]
[418921841,1774553446013,-6762.1846,0.00014039,2]
[418921842,1774553446022,-2500.0,0.00014039,2]
[418921843,1774553446031,-122719.17616684,0.00014039,2]
[418921844,1774553446043,-1171.03655063,0.00014039,2]
[418921845,1774553446345,-916.89456454,0.00014039,2]
[418921846,1774553446400,-12626.40644906,0.00014039,2]
[418921847,1774553446510,-87725.47743633,0.00014039,2]
[418921849,1774553446522,-560.6646397,0.00014039,2]
[418921854,1774553782487,222.38,0.00014,120]
[418921863,1774554632315,-584.3869834,0.00011507,2]
[418921864,1774554632327,-693.6130166,0.00011507,2]
[418921878,1774554638276,-289.47,0.00011507,2]
[418921879,1774554638285,-166.66,0.0001254,2]
[418921880,1774554638294,-195.0,0.00012658,2]
[418921881,1774554638304,-195.0,0.00012672,2]
[418921882,1774554638313,-166.66,0.00012804,2]
[418921883,1774554638322,-195.0,0.0001292,2]
[418921884,1774554638331,-195.0,0.0001292,2]
[418921885,1774554638341,-250.0,0.00013,2]
[418921886,1774554638350,-166.66,0.00013068,2]
[418921887,1774554638359,-161.13075856,0.00013096,2]
[418921888,1774554638371,-291.72479288,0.00013096,2]
[418921889,1774554638382,-1058.9566945,0.00013096,2]
[418921890,1774554638403,-488.18775406,0.00013096,2]
[418921891,1774554638413,-150.0,0.000132,2]
[418921892,1774554638423,-97.94082263,0.00013206,2]
[418921893,1774554638434,-1709.20917737,0.00013206,2]
[418921894,1774554638443,-166.66,0.00013332,2]
[418921895,1774554638452,-183.91,0.00013337,2]
[418921896,1774554638462,-1200.0,0.00013595,2]
[418921897,1774554638473,-166.66,0.00013596,2]
[418921898,1774554638482,-200.0,0.00013699,2]
[418921899,1774554638492,-189.7,0.00013699,2]
[418921900,1774554638501,-154.11,0.00013699,2]
[418921901,1774554638510,-300.0,0.00013791,2]
[418921902,1774554638519,-150.0,0.00013792,2]
[418921903,1774554638528,-600.0,0.00013793,2]
[418921904,1774554638537,-1637.17127379,0.00013793,2]
[418921907,1774554640622,-862.82872621,0.00013793,2]
[418921908,1774554640632,-1415.03976882,0.00013793,2]
[418921909,1774554640989,-1084.96023118,0.00013793,2]
[418921910,1774554640999,-2500.0,0.00013793,2]
[418921911,1774554641008,-2500.0,0.00013793,2]
[418921912,1774554641018,-500.0,0.00013793,2]
[418921913,1774554641029,-500.0,0.00013793,2]
[418921914,1774554641038,-500.0,0.00013793,2]
[418921915,1774554641048,-500.0,0.00013793,2]
[418921916,1774554641057,-500.0,0.00013793,2]
[418921917,1774554641067,-195.0,0.00013793,2]
[418921918,1774554641076,-200.0,0.00013793,2]
[418921919,1774554641085,-200.0,0.00013793,2]
[418921920,1774554641094,-200.0,0.00013793,2]
[418921921,1774554641103,-200.0,0.00013793,2]
[418921922,1774554641113,-187.86309939,0.00013793,2]
[418921923,1774554641122,-300.0,0.00013793,2]
[418921924,1774554641131,-1186.41641046,0.0001384,2]
[418921925,1774554641144,-561.09131248,0.0001384,2]
[418921926,1774554641153,-166.66,0.0001386,2]
[418921927,1774554641162,-272.24868752,0.00013934,2]
[418921929,1774554641421,-706.91797915,0.00013934,2]
[418921930,1774554641430,-286.38739358,0.00013938,2]
[418921931,1774554641439,-272.27100671,0.00013938,2]
[418921932,1774554641448,-500.0,0.00013938,2]
[418921933,1774554641457,-500.0,0.00013938,2]
[418921934,1774554641467,-500.0,0.00013938,2]
[418921935,1774554641475,-348.5284745,0.00013938,2]
[418921965,1774554643464,-285.37,0.0001378,2]
[418921967,1774554643475,-151.4715255,0.00013938,2]
[418921969,1774554643485,-500.0,0.00013938,2]
[418921971,1774554643495,-500.0,0.00013938,2]
[418921973,1774554643505,-500.0,0.00013938,2]
[418921974,1774554643516,-428.6138822,0.00013938,2]
[418921975,1774554643525,-15432.7673,0.00013939,2]
[418921976,1774554643535,-12900.50569512,0.00013939,2]
[418921977,1774554643937,-1754.56704307,0.00013939,2]
[418921992,1774554646197,-576.71314428,0.00013939,2]
[418921993,1774554646462,-1372.48,0.00013939,2]
[418921994,1774554646621,-37952.0662582,0.00013939,2]
[418921995,1774554646675,-287333.3893977,0.00013939,2]
[418921996,1774554646687,-685.96029862,0.00013939,2]
[418921997,1774554646728,-2056.00600135,0.00013939,2]
[418922125,1774555831527,-1483.02344022,9.5e-05,3]
[418922126,1774555831582,-260.03248731,9.5e-05,3]
[418922127,1774555831594,-445.76046939,9.5e-05,3]
[418922128,1774555831606,-6608.37891665,9.5e-05,3]
[418922129,1774555831616,-653.87301577,0.0001,2]
[418922130,1774555831625,-195.0,0.00011,2]
[418922131,1774555831635,-195.0,0.00011,2]
[418922132,1774555831644,-195.0,0.00011437,2]
[418922133,1774555831653,-195.0,0.00012446,2]
[418922134,1774555831664,-195.0,0.00012446,2]
[418922135,1774555831673,-394.8,0.00012874,2]
[418922136,1774555831682,-500.0,0.00013008,2]
[418922137,1774555831692,-150.0,0.00013144,2]
[418922138,1774555831701,-1500.0,0.00013299,2]
[418922139,1774555831711,-200.0,0.00013301,2]
[418922140,1774555831720,-1200.0,0.00013424,2]
[418922141,1774555831731,-3240.0,0.00013425,2]
[418922142,1774555831740,-300.0,0.00013592,2]
[418922143,1774555831749,-300.0,0.00013592,2]
[418922144,1774555831759,-6912.54963343,0.00013593,2]
[418922145,1774555831771,-322.59321388,0.00013593,2]
[418922146,1774555831783,-3625.58942686,0.00013593,2]
[418922147,1774555831797,-428.38567735,0.00013593,2]
[418922148,1774555831809,-713.69324848,0.00013593,2]
[418922149,1774555831818,-979.16666667,0.00013635,2]
[418922150,1774555831827,-1823.5202,0.00013639,2]
[418922151,1774555831837,-150.0,0.00013737,2]
[418922152,1774555831847,-540.98647851,0.00013738,2]
[418922153,1774555831856,-500.0,0.00013738,2]
[418922154,1774555831866,-257.28717286,0.00013738,2]
[418922155,1774555831875,-448.59067116,0.00013738,2]
[418922156,1774555831885,-436.51265358,0.00013738,2]
[418922157,1774555831894,-244.70377749,0.00013739,2]
[418922158,1774555831904,-2656.25420299,0.00013739,2]
[418922160,1774555831913,-1438.60386334,0.00013739,2]
[418922164,1774555831940,-1432.6153019,0.00013739,2]
[418922181,1774555837564,-286.372,0.00013739,2]
[418922182,1774555837576,-871.00632255,0.00013739,2]
[418922183,1774555837588,-2384.51869755,0.00013739,2]
[418922184,1774555837617,-161400.49692506,0.00013739,2]
[418922185,1774555837832,-2324.99713724,0.00013739,2]
[418922186,1774555837890,-7945.07557534,0.00013739,2]
[418922268,1774555840212,-430.4257349,0.00013739,2]
[418922269,1774555840634,-557.94431981,0.00013739,2]
[418922270,1774555840647,-502.76721983,0.00013739,2]
[418922271,1774555840688,-23308.6696544,0.00013739,2]
[418922278,1774555842903,-198.41156976,0.00013726,2]
[418922279,1774555842914,-506.98254651,0.00013739,2]
[418922280,1774555843004,-6873.5178572,0.00013739,2]
[418922291,1774555845429,-14030.6731,0.00013739,2]
[418922292,1774555845440,-676.87939562,0.00013739,2]
[418922300,1774555845536,-7588.08125855,0.00013739,2]
[418922302,1774555845548,-1986.11843336,0.00013739,2]
[418922304,1774555845560,-685.08420063,0.00013739,2]
[418922307,1774555845571,-154259.4400573,0.00013739,2]
[418922310,1774555845593,-1422.57808473,0.00013739,2]
[418922314,1774555845964,-6777.58677805,0.00013739,2]
[418922334,1774557031808,-166.66,0.00012105,2]
[418922335,1774557031820,-166.66,0.0001236,2]
[418922336,1774557031830,-166.66,0.00012615,2]
[418922337,1774557031841,-155.98610294,0.00012803,2]
[418922338,1774557031851,-166.66,0.00012869,2]
[418922339,1774557031862,-2000.0,0.00012899,2]
[418922340,1774557031873,-1600.0,0.00012912,2]
[418922341,1774557031883,-250.0,0.00013,2]
[418922342,1774557031893,-166.66,0.00013124,2]
[418922343,1774557031904,-302.11041688,0.00013315,2]
[418922344,1774557031915,-151.0,0.00013378,2]
[418922345,1774557031926,-166.66,0.00013379,2]
[418922346,1774557031936,-213.50988058,0.00013398,2]
[418922347,1774557031949,-986.49011942,0.00013398,2]
[418922349,1774557031959,-128.84869082,0.00013399,2]
[418922363,1774557032127,-171.15130918,0.00013399,2]
[418922366,1774557032137,-266.28545582,0.000134,2]
[418922368,1774557032150,-525.79675041,0.000134,2]
[418922370,1774557032163,-2133.11203059,0.000134,2]
[418922372,1774557032173,-155.98610293,0.000134,2]
[418922374,1774557032184,-150.0,0.00013491,2]
[418922377,1774557032196,-500.0,0.00013492,2]
[418922379,1774557032207,-500.0,0.00013492,2]
[418922381,1774557032218,-500.0,0.00013492,2]
[418922383,1774557032229,-500.0,0.00013492,2]
[418922385,1774557032240,-500.0,0.00013492,2]
[418922387,1774557032250,-500.0,0.00013492,2]
[418922389,1774557032261,-500.0,0.00013492,2]
[418922391,1774557032271,-500.0,0.00013492,2]
[418922394,1774557032282,-194.70548725,0.00013492,2]
[418922396,1774557032292,-294.74637923,0.00013492,2]
[418922398,1774557032306,-205.25362077,0.00013492,2]
[418922400,1774557032318,-143.80339864,0.00013492,2]
[418922401,1774557032331,-356.19660136,0.00013492,2]
[418922402,1774557032341,-5.65696458,0.00013492,2]
[418922410,1774557037970,-494.34303542,0.00013492,2]
[418922411,1774557037979,-471.25825199,0.00013492,2]
[418922412,1774557037991,-28.74174801,0.00013492,2]
[418922413,1774557038000,-372.19802981,0.00013492,2]
[418922414,1774557038011,-127.80197019,0.00013492,2]
[418922415,1774557038020,-500.0,0.00013492,2]
[418922416,1774557038030,-63.90047026,0.00013492,2]
[418922417,1774557038211,-436.09952974,0.00013492,2]
[418922418,1774557038222,-452.46763096,0.00013492,2]
[418922419,1774557038233,-47.53236904,0.00013492,2]
[418922420,1774557038242,-299.78763096,0.00013492,2]
[418922421,1774557038255,-200.21236904,0.00013492,2]
[418922422,1774557038265,-500.0,0.00013492,2]
[418922423,1774557038275,-500.0,0.00013492,2]
[418922424,1774557038285,-500.0,0.00013492,2]
[418922425,1774557038296,-500.0,0.00013492,2]
[418922426,1774557038307,-500.0,0.00013492,2]
[418922427,1774557038317,-500.0,0.00013492,2]
[418922428,1774557038327,-500.0,0.00013492,2]
[418922429,1774557038337,-500.0,0.00013492,2]
[418922430,1774557038347,-500.0,0.00013492,2]
[418922431,1774557038357,-500.0,0.00013492,2]
[418922432,1774557038368,-500.0,0.00013492,2]
[418922433,1774557038377,-500.0,0.00013492,2]
[418922434,1774557038388,-500.0,0.00013492,2]
[418922435,1774557038397,-500.0,0.00013492,2]
[418922436,1774557038409,-500.0,0.00013492,2]
[418922437,1774557038419,-250.0,0.00013492,2]
[418922438,1774557038429,-500.0,0.00013492,2]
[418922439,1774557038437,-500.0,0.00013492,2]
[418922440,1774557038447,-6763.21327374,0.00013493,2]
[418922441,1774557038462,-2458.91970035,0.00013493,2]
[418922442,1774557038473,-1020.29583807,0.00013493,2]
[418922453,1774557040267,-151.0,0.00013363,2]
[418922454,1774557040277,-418.0,0.00013493,2]
[418922455,1774557040327,-2522.48116495,0.00013493,2]
[418922456,1774557040387,-16339.72992309,0.00013493,2]
[418922457,1774557040398,-513.28348177,0.00013493,2]
[418922509,1774557043238,-690.17086125,0.00013493,2]
[418922510,1774557043296,-9378.33832342,0.00013493,2]
[418922511,1774557043307,-4350.11158486,0.00013493,2]
[418922540,1774557045631,-20795.1,0.00013393,2]
[418922541,1774557045692,-4594.9268,0.00013393,2]
[418922542,1774557045701,-37739.61722154,0.00013493,2]
[418922554,1774557914207,158.8,6.162e-05,2]
[418922555,1774557914407,158.8,6.486e-05,2]
[418922556,1774557914620,158.8,6.811e-05,2]
[418922557,1774557914815,158.8,7.135e-05,2]
[418922558,1774557915017,158.8,7.459e-05,2]